bitfinex/quotes_BTCUSD_20241009
["timestamp","ask_amount","ask_price","bid_price","bid_amount"]
[1728442560378,0.68644032,62345.0,62344.0,0.000821]
[1728442562371,0.55463398,62345.0,62344.0,0.000821]
[1728442565661,0.55963398,62345.0,62344.0,0.000821]
[1728442565913,0.60963077,62345.0,62344.0,0.000821]
[1728442566170,0.46499788,62344.0,62343.0,0.00067846]
[1728442566414,0.87257343,62344.0,62343.0,0.00067846]
[1728442566907,0.82459214,62344.0,62343.0,0.00067846]
[1728442567120,0.87257343,62344.0,62343.0,0.00067846]
[1728442567552,0.82759214,62344.0,62343.0,0.00067846]
[1728442568600,0.82959214,62344.0,62343.0,0.00067846]
[1728442568820,0.55338082,62344.0,62343.0,0.00067846]
[1728442569081,0.05576738,62344.0,62343.0,0.00067846]
[1728442569302,0.05576738,62344.0,62343.0,0.16108046]
[1728442569998,0.22116738,62344.0,62343.0,0.00067846]
[1728442570480,0.06076738,62344.0,62343.0,0.00067846]
[1728442570694,0.05576738,62344.0,62343.0,0.00067846]
[1728442571128,0.15284451,62344.0,62343.0,0.00067846]
[1728442572473,0.15282192,62344.0,62343.0,0.00067846]
[1728442573022,0.31322192,62344.0,62343.0,0.00067846]
[1728442573442,0.30822192,62344.0,62343.0,0.00067846]
[1728442573841,0.31322192,62344.0,62343.0,0.00067846]
[1728442574298,0.05574479,62344.0,62343.0,0.16108046]
[1728442574742,0.05574479,62344.0,62343.0,0.00067846]
[1728442575431,0.21614479,62344.0,62343.0,0.00067846]
[1728442575663,0.17717328,62344.0,62343.0,0.00067846]
[1728442576099,0.05575615,62344.0,62343.0,0.00067846]
[1728442580330,0.16387195,62344.0,62343.0,0.00067846]
[1728442581180,0.32427195,62344.0,62343.0,0.00067846]
[1728442581409,0.16387195,62344.0,62343.0,0.00067846]
[1728442582605,0.1639073,62344.0,62343.0,0.00067846]
[1728442583233,0.3243073,62344.0,62343.0,0.00067846]
[1728442587021,0.0557915,62344.0,62343.0,0.00067846]
[1728442587440,0.2178335,62344.0,62343.0,0.00067846]
[1728442590943,0.3086335,62344.0,62343.0,0.00067846]
[1728442591173,0.54754694,62344.0,62343.0,0.00067846]
[1728442591417,0.54954694,62344.0,62343.0,0.00067846]
[1728442591618,0.70496038,62344.0,62343.0,0.00067846]
[1728442591841,0.70496038,62344.0,62334.0,0.000821]
[1728442591842,0.0929,62339.0,62334.0,0.000821]
[1728442592082,0.28122088,62335.0,62334.0,0.000821]
[1728442592310,0.3202391,62335.0,62334.0,0.000821]
[1728442592524,0.33000827,62335.0,62334.0,0.000821]
[1728442592731,0.45250714,62335.0,62334.0,0.000821]
[1728442593433,0.45250714,62335.0,62334.0,0.005821]
[1728442594067,0.16958527,62335.0,62334.0,0.007821]
[1728442594287,0.04878739,62335.0,62334.0,0.007821]
[1728442594709,0.04878739,62335.0,62334.0,0.005821]
[1728442594971,0.04978739,62335.0,62334.0,0.011821]
[1728442595367,0.04878739,62335.0,62334.0,0.000821]
[1728442595901,0.05378739,62335.0,62334.0,0.000821]
[1728442596552,0.05378739,62335.0,62334.0,0.161247]
[1728442597009,0.0440104,62335.0,62334.0,0.161247]
[1728442597506,0.0420104,62335.0,62334.0,0.161247]
[1728442597970,0.0430104,62335.0,62334.0,0.167247]
[1728442598422,0.0420104,62335.0,62334.0,0.161247]
[1728442598652,0.04878593,62335.0,62334.0,0.165247]
[1728442599098,0.05178593,62335.0,62334.0,0.165247]
[1728442599334,0.04878593,62335.0,62334.0,0.165247]
[1728442599548,0.04878593,62335.0,62334.0,0.168247]
[1728442600703,0.06338452,62335.0,62334.0,0.168247]
[1728442601802,0.06338452,62335.0,62334.0,0.161247]
[1728442602030,0.06438452,62335.0,62334.0,0.000821]
[1728442602254,0.02437412,62335.0,62334.0,0.000821]
[1728442602482,0.06338575,62335.0,62334.0,0.000821]
[1728442602710,0.06438575,62335.0,62334.0,0.000821]
[1728442604614,0.34560663,62335.0,62334.0,0.000821]
[1728442605809,0.51400663,62335.0,62334.0,0.000821]
[1728442608093,0.66942007,62335.0,62334.0,0.000821]
[1728442608312,0.67142007,62335.0,62334.0,0.000821]
[1728442608963,0.63240844,62335.0,62334.0,0.000821]
[1728442609281,0.66939398,62335.0,62334.0,0.000821]
[1728442609485,0.69338511,62335.0,62334.0,0.000821]
[1728442609695,0.66939133,62335.0,62334.0,0.000821]
[1728442609892,0.6953782,62335.0,62334.0,0.000821]
[1728442610224,0.6933782,62335.0,62334.0,0.000821]
[1728442610460,0.6713871,62335.0,62334.0,0.000821]
[1728442610929,0.6733871,62335.0,62334.0,0.000821]
[1728442611167,0.6753871,62335.0,62334.0,0.000821]
[1728442611597,0.6703871,62335.0,62334.0,0.000821]
[1728442611832,0.6823871,62335.0,62334.0,0.002821]
[1728442612041,0.6763871,62335.0,62334.0,0.001821]
[1728442612293,0.6703871,62335.0,62334.0,0.000821]
[1728442612591,0.67537751,62335.0,62334.0,0.000821]
[1728442612814,0.68537751,62335.0,62334.0,0.001821]
[1728442613055,0.69237751,62335.0,62334.0,0.002821]
[1728442613242,0.68537751,62335.0,62334.0,0.001821]
[1728442614626,0.69237751,62335.0,62334.0,0.002821]
[1728442615688,0.68737751,62335.0,62334.0,0.002821]
[1728442618971,0.64840844,62335.0,62334.0,0.002821]
[1728442619182,0.68737324,62335.0,62334.0,0.002821]
[1728442621881,0.69237324,62335.0,62334.0,0.002821]
[1728442624621,0.65340844,62335.0,62334.0,0.002821]
[1728442624840,0.69236112,62335.0,62334.0,0.002821]
[1728442629112,0.69237208,62335.0,62334.0,0.002821]
[1728442632586,0.69237208,62335.0,62327.0,0.001642]
[1728442632587,0.28123888,62328.0,62327.0,0.001642]
[1728442632820,0.47561596,62328.0,62327.0,0.001642]
[1728442633050,0.48538001,62328.0,62327.0,0.001642]
[1728442633966,0.48838001,62328.0,62327.0,0.001642]
[1728442634863,0.49238001,62328.0,62327.0,0.001642]
[1728442635078,0.60629231,62328.0,62327.0,0.001642]
[1728442635590,0.48549443,62328.0,62327.0,0.001642]
[1728442635806,0.60629231,62328.0,62327.0,0.001642]
[1728442637834,0.60634922,62328.0,62327.0,0.001642]
[1728442639261,0.83397682,62328.0,62327.0,0.001642]
[1728442639488,0.70764922,62328.0,62327.0,0.001642]
[1728442639690,0.75449676,62328.0,62327.0,0.001642]
[1728442639963,0.70764922,62328.0,62327.0,0.001642]
[1728442640137,0.70364922,62328.0,62327.0,0.001642]
[1728442640398,0.70864922,62328.0,62327.0,0.002642]
[1728442640578,0.71664922,62328.0,62327.0,0.003642]
[1728442640795,0.71864922,62328.0,62327.0,0.003642]
[1728442641005,0.67962867,62328.0,62327.0,0.003642]
[1728442641225,0.71063076,62328.0,62327.0,0.002642]
[1728442641439,0.72163076,62328.0,62327.0,0.003642]
[1728442641868,0.71363076,62328.0,62327.0,0.002642]
[1728442642077,0.72463076,62328.0,62327.0,0.003642]
[1728442642290,0.71363076,62328.0,62327.0,0.002642]
[1728442642670,0.72563076,62328.0,62327.0,0.003642]
[1728442643098,0.71463076,62328.0,62327.0,0.002642]
[1728442643583,0.72563076,62328.0,62327.0,0.003642]
[1728442644452,0.82042597,62328.0,62327.0,0.003642]
[1728442644652,0.72563076,62328.0,62327.0,0.003642]
[1728442644866,0.80403076,62328.0,62327.0,0.003642]
[1728442645463,0.68323288,62328.0,62327.0,0.003642]
[1728442645708,0.80403076,62328.0,62327.0,0.003642]
[1728442647182,0.85197103,62328.0,62327.0,0.003642]
[1728442647434,0.005,62324.0,62320.0,0.000821]
[1728442647676,0.160459,62321.0,62320.0,0.000821]
[1728442647921,0.31587244,62321.0,62320.0,0.000821]
[1728442648163,0.36457632,62321.0,62320.0,0.000821]
[1728442648891,0.36457632,62321.0,62320.0,0.001821]
[1728442649139,0.48279454,62321.0,62320.0,0.001821]
[1728442650549,0.48279454,62321.0,62320.0,0.000821]
[1728442651033,0.48679454,62321.0,62320.0,0.000821]
[1728442653394,0.48179454,62321.0,62320.0,0.000821]
[1728442653613,0.48279454,62321.0,62320.0,0.000821]
[1728442654075,0.48679454,62321.0,62320.0,0.000821]
[1728442654545,0.3273811,62321.0,62320.0,0.080721]
[1728442654767,0.1629221,62321.0,62320.0,0.080721]
[1728442654992,0.04970388,62321.0,62320.0,0.080721]
[1728442655204,0.05170388,62321.0,62320.0,0.080721]
[1728442655969,0.21216288,62321.0,62320.0,0.080721]
[1728442656856,0.21216288,62321.0,62320.0,0.000821]
[1728442664281,0.05170388,62321.0,62320.0,0.000821]
[1728442664500,0.05170388,62321.0,62320.0,0.45558088]
[1728442664722,0.04197977,62321.0,62320.0,0.45558088]
[1728442664938,0.04197977,62321.0,62320.0,0.174321]
[1728442665141,0.04197977,62321.0,62320.0,0.083621]
[1728442665347,0.11411706,62321.0,62320.0,0.244083]
[1728442665568,0.04970459,62321.0,62320.0,0.244083]
[1728442665820,0.05170459,62321.0,62320.0,0.244083]
[1728442666099,0.04970459,62321.0,62320.0,0.244083]
[1728442666252,0.04870459,62321.0,62320.0,0.249083]
[1728442666877,0.08269974,62321.0,62320.0,0.005821]
[1728442667097,0.21016359,62321.0,62320.0,0.005821]
[1728442667324,0.20916359,62321.0,62320.0,0.005821]
[1728442667536,0.19419938,62321.0,62320.0,0.010821]
[1728442667758,0.13646459,62321.0,62320.0,0.010821]
[1728442667961,0.0487501,62321.0,62320.0,0.010821]
[1728442668181,0.2092091,62321.0,62320.0,0.010821]
[1728442668602,0.0487501,62321.0,62320.0,0.010821]
[1728442668831,0.0487501,62321.0,62320.0,0.247883]
[1728442669035,0.0487501,62321.0,62320.0,0.180721]
[1728442669675,0.0487563,62321.0,62320.0,0.180721]
[1728442669926,0.08778778,62321.0,62320.0,0.180721]
[1728442670638,0.0487563,62321.0,62320.0,0.341183]
[1728442671336,0.0487563,62321.0,62320.0,0.180721]
[1728442672366,0.0487563,62321.0,62320.0,0.175721]
[1728442672574,0.0487563,62321.0,62320.0,0.331183]
[1728442672789,0.0487563,62321.0,62320.0,0.170721]
[1728442673024,0.04975774,62321.0,62320.0,0.170721]
[1728442674051,0.04975774,62321.0,62320.0,0.331183]
[1728442674265,0.0938305,62321.0,62320.0,0.170721]
[1728442674483,0.0938305,62321.0,62320.0,0.077421]
[1728442677460,0.05480052,62321.0,62320.0,0.077421]
[1728442677689,0.09383557,62321.0,62320.0,0.077421]
[1728442679247,0.09383557,62321.0,62320.0,0.000821]
[1728442679877,0.25429457,62321.0,62320.0,0.000821]
[1728442680505,0.09383557,62321.0,62320.0,0.000821]
[1728442680730,0.0698163,62321.0,62320.0,0.000821]
[1728442680955,0.09384155,62321.0,62320.0,0.000821]
[1728442681404,0.25430055,62321.0,62320.0,0.000821]
[1728442684866,0.09384155,62321.0,62320.0,0.000821]
[1728442685101,0.04976729,62321.0,62320.0,0.000821]
[1728442685366,0.04976729,62321.0,62320.0,0.161283]
[1728442685814,0.04004103,62321.0,62320.0,0.161283]
[1728442686044,0.04976534,62321.0,62320.0,0.000821]
[1728442686262,0.04004103,62321.0,62320.0,0.000821]
[1728442686504,0.04976371,62321.0,62320.0,0.000821]
[1728442686721,0.09491045,62321.0,62320.0,0.000821]
[1728442690440,0.04976371,62321.0,62320.0,0.000821]
[1728442690694,0.04976371,62321.0,62320.0,0.161283]
[1728442692106,0.04976395,62321.0,62320.0,0.161283]
[1728442693336,0.0400394,62321.0,62320.0,0.161283]
[1728442696380,0.0390394,62321.0,62320.0,0.161283]
[1728442696641,0.03904413,62321.0,62320.0,0.161283]
[1728442698101,0.03904413,62321.0,62320.0,0.000821]
[1728442698332,0.05999374,62321.0,62320.0,0.000821]
[1728442698503,0.06871848,62321.0,62320.0,0.000821]
[1728442698933,0.06871848,62321.0,62320.0,0.161283]
[1728442699107,0.06871848,62321.0,62320.0,0.001821]
[1728442699947,0.06871621,62321.0,62320.0,0.001821]
[1728442701001,0.22917521,62321.0,62320.0,0.001821]
[1728442701421,0.06871621,62321.0,62320.0,0.001821]
[1728442701646,0.22917521,62321.0,62320.0,0.001821]
[1728442701864,0.06871621,62321.0,62320.0,0.001821]
[1728442702529,0.06871621,62321.0,62320.0,0.000821]
[1728442702752,0.07171621,62321.0,62320.0,0.000821]
[1728442702968,0.07571621,62321.0,62320.0,0.000821]
[1728442703199,0.07171621,62321.0,62320.0,0.000821]
[1728442703428,0.03867435,62321.0,62320.0,0.001821]
[1728442703647,0.23817126,62321.0,62320.0,0.001821]
[1728442704323,0.23517126,62321.0,62320.0,0.001821]
[1728442706608,0.10703912,62321.0,62320.0,0.001821]
[1728442706834,0.10103912,62321.0,62320.0,0.000821]
[1728442707299,0.10503912,62321.0,62320.0,0.000821]
[1728442707748,0.05276265,62321.0,62320.0,0.000821]
[1728442707983,0.05276265,62321.0,62320.0,0.161283]
[1728442708240,0.05576265,62321.0,62320.0,0.161283]
[1728442708694,0.05276265,62321.0,62320.0,0.161283]
[1728442708918,0.05476265,62321.0,62320.0,0.161283]
[1728442709400,0.05076265,62321.0,62320.0,0.161283]
[1728442709648,0.05376265,62321.0,62320.0,0.161283]
[1728442709881,0.05176265,62321.0,62320.0,0.161283]
[1728442710116,0.04876265,62321.0,62320.0,0.161283]
[1728442710346,0.05076265,62321.0,62320.0,0.161283]
[1728442710582,0.04876265,62321.0,62320.0,0.161283]
[1728442710780,0.04875193,62321.0,62320.0,0.161283]
[1728442711021,0.04975193,62321.0,62320.0,0.161283]
[1728442711226,0.04875193,62321.0,62320.0,0.161283]
[1728442711455,0.05175193,62321.0,62320.0,0.161283]
[1728442711933,0.04875193,62321.0,62320.0,0.161283]
[1728442712211,0.06967212,62321.0,62320.0,0.161283]
[1728442712466,0.16107212,62321.0,62320.0,0.001821]
[1728442713168,0.12204493,62321.0,62320.0,0.001821]
[1728442713424,0.32153175,62321.0,62320.0,0.001821]
[1728442716476,0.16107275,62321.0,62320.0,0.001821]
[1728442718192,0.32153175,62321.0,62320.0,0.001821]
[1728442720497,0.55844519,62321.0,62320.0,0.001821]
[1728442720965,0.28126188,62319.0,62318.0,0.000821]
[1728442721195,0.46092306,62319.0,62318.0,0.000821]
[1728442721425,0.42261033,62319.0,62318.0,0.000821]
[1728442721653,0.30181245,62319.0,62318.0,0.000821]
[1728442721886,0.42261033,62319.0,62318.0,0.000821]
[1728442722113,0.57802377,62319.0,62318.0,0.000821]
[1728442722590,0.58102377,62319.0,62318.0,0.000821]
[1728442723288,0.46022589,62319.0,62318.0,0.000821]
[1728442723539,0.58502377,62319.0,62318.0,0.000821]
[1728442726531,0.54599595,62319.0,62318.0,0.000821]
[1728442726762,0.58499442,62319.0,62318.0,0.000821]
[1728442729849,0.58499197,62319.0,62318.0,0.000821]
[1728442730312,0.58499181,62319.0,62318.0,0.000821]
[1728442733555,0.58499187,62319.0,62318.0,0.000821]
[1728442746419,0.54599595,62319.0,62318.0,0.000821]
[1728442746675,0.58501649,62319.0,62318.0,0.000821]
[1728442755080,0.46421861,62319.0,62318.0,0.000821]
[1728442755295,0.37161861,62319.0,62318.0,0.000821]
[1728442756996,0.21620517,62319.0,62318.0,0.000821]
[1728442757231,0.05574117,62319.0,62318.0,0.079521]
[1728442757725,0.05576938,62319.0,62318.0,0.079521]
[1728442758157,0.21623338,62319.0,62318.0,0.079521]
[1728442758683,0.31880799,62319.0,62318.0,0.000821]
[1728442762863,0.21623338,62319.0,62318.0,0.000821]
[1728442768461,0.17718463,62319.0,62318.0,0.000821]
[1728442768703,0.2162444,62319.0,62318.0,0.000821]
[1728442772153,0.21624516,62319.0,62318.0,0.000821]
[1728442775764,0.17718463,62319.0,62318.0,0.000821]
[1728442775981,0.21624706,62319.0,62318.0,0.000821]
[1728442776212,0.05578306,62319.0,62318.0,0.000821]
[1728442776433,0.21624706,62319.0,62318.0,0.000821]
[1728442781847,0.33165123,62319.0,62318.0,0.000821]
[1728442782046,0.21624706,62319.0,62318.0,0.000821]
[1728442782754,0.17718463,62319.0,62318.0,0.000821]
[1728442782994,0.21625471,62319.0,62318.0,0.000821]
[1728442790048,0.21627293,62319.0,62318.0,0.000821]
[1728442791658,0.25536123,62319.0,62318.0,0.000821]
[1728442791874,0.24032727,62319.0,62318.0,0.000821]
[1728442792793,0.21627766,62319.0,62318.0,0.000821]
[1728442793228,0.20124188,62319.0,62318.0,0.000821]
[1728442793892,0.17718463,62319.0,62318.0,0.000821]
[1728442794568,0.20124111,62319.0,62318.0,0.000821]
[1728442794792,0.2403329,62319.0,62318.0,0.000821]
[1728442795015,0.36144759,62319.0,62318.0,0.000821]
[1728442797080,0.34641146,62319.0,62318.0,0.000821]
[1728442797324,0.36144624,62319.0,62318.0,0.000821]
[1728442797542,0.24033155,62319.0,62318.0,0.000821]
[1728442798447,0.07986755,62319.0,62318.0,0.000821]
[1728442800039,0.07686755,62319.0,62318.0,0.000821]
[1728442800286,0.07286755,62319.0,62318.0,0.000821]
[1728442800601,0.07586755,62319.0,62318.0,0.000821]
[1728442801556,0.07886755,62319.0,62318.0,0.000821]
[1728442802137,0.133866,62319.0,62318.0,0.000821]
[1728442802353,0.134866,62319.0,62318.0,0.000821]
[1728442802780,0.1348679,62319.0,62318.0,0.000821]
[1728442803474,0.07386945,62319.0,62318.0,0.000821]
[1728442803677,0.07386945,62319.0,62318.0,0.336088]
[1728442803933,0.07386945,62319.0,62318.0,0.43244841]
[1728442804141,0.07386945,62319.0,62318.0,0.336088]
[1728442804768,0.04981297,62319.0,62318.0,0.43238785]
[1728442805016,0.04981297,62319.0,62318.0,0.43438785]
[1728442805254,0.04881297,62319.0,62318.0,0.43438785]
[1728442805508,0.04881297,62319.0,62318.0,0.338088]
[1728442805755,0.04981297,62319.0,62318.0,0.41028531]
[1728442805982,0.04876894,62319.0,62318.0,0.41028531]
[1728442806236,0.04876894,62319.0,62318.0,0.41128531]
[1728442806459,0.04876894,62319.0,62318.0,0.3872077]
[1728442806909,0.04876894,62319.0,62318.0,0.339088]
[1728442807899,0.04876894,62319.0,62318.0,0.164288]
[1728442809313,0.04874481,62319.0,62318.0,0.164288]
[1728442810966,0.04874481,62319.0,62318.0,0.241288]
[1728442812173,0.04874481,62319.0,62318.0,0.164288]
[1728442816180,0.04874304,62319.0,62318.0,0.164288]
[1728442817826,0.03902241,62319.0,62318.0,0.164288]
[1728442818080,0.03902241,62319.0,62318.0,0.49960144]
[1728442818323,0.03902241,62319.0,62318.0,0.59030144]
[1728442818556,0.01500862,62319.0,62318.0,0.66247312]
[1728442819276,0.001642,62320.0,62319.0,0.260464]
[1728442819521,0.001642,62320.0,62319.0,0.41587744]
[1728442819781,0.04065803,62320.0,62319.0,0.41587744]
[1728442820945,0.04065803,62320.0,62319.0,0.41687744]
[1728442822375,0.04065803,62320.0,62319.0,0.261464]
[1728442822635,0.001642,62320.0,62319.0,0.161464]
[1728442822855,0.04064796,62320.0,62319.0,0.161464]
[1728442823094,0.05422702,62320.0,62319.0,0.161464]
[1728442823325,0.04008633,62320.0,62319.0,0.161464]
[1728442823563,0.07467361,62320.0,62319.0,0.161464]
[1728442824006,0.07467361,62320.0,62319.0,0.160464]
[1728442824467,0.06109455,62320.0,62319.0,0.160464]
[1728442824695,0.07467361,62320.0,62319.0,0.160464]
[1728442825147,0.06109455,62320.0,62319.0,0.160464]
[1728442825382,0.03609073,62320.0,62319.0,0.160464]
[1728442826089,0.01600351,62320.0,62319.0,0.481389]
[1728442826314,0.01500351,62320.0,62319.0,0.481389]
[1728442826829,0.01600351,62320.0,62319.0,0.481389]
[1728442827053,0.01500351,62320.0,62319.0,0.481389]
[1728442827806,0.01500351,62320.0,62319.0,0.486389]
[1728442828003,0.01500351,62320.0,62319.0,0.490389]
[1728442828497,0.01500351,62320.0,62319.0,0.486389]
[1728442828726,0.01500351,62320.0,62319.0,0.492389]
[1728442828954,0.01600351,62320.0,62319.0,0.487389]
[1728442829417,0.01700742,62320.0,62319.0,0.494389]
[1728442829637,0.01600742,62320.0,62319.0,0.487389]
[1728442829867,0.01600742,62320.0,62319.0,0.489389]
[1728442830127,0.01600742,62320.0,62319.0,0.487389]
[1728442830576,0.01500742,62320.0,62319.0,0.487389]
[1728442830820,0.01500742,62320.0,62319.0,0.490389]
[1728442831315,0.01500742,62320.0,62319.0,0.487389]
[1728442831555,0.01600742,62320.0,62319.0,0.493389]
[1728442832682,0.01764942,62320.0,62319.0,0.493389]
[1728442833569,0.0416741,62320.0,62319.0,0.493389]
[1728442839134,0.002642,62320.0,62319.0,0.493389]
[1728442839387,0.04169036,62320.0,62319.0,0.493389]
[1728442842711,0.04169413,62320.0,62319.0,0.569389]
[1728442842971,0.04169413,62320.0,62319.0,0.82480244]
[1728442843689,0.04169413,62320.0,62319.0,0.92360244]
[1728442843923,0.04169413,62320.0,62319.0,1.01980901]
[1728442844149,0.01766205,62320.0,62319.0,0.92360244]
[1728442844379,0.01766205,62320.0,62319.0,0.94660244]
[1728442844592,0.002642,62320.0,62319.0,0.95160244]
[1728442845068,0.002642,62320.0,62319.0,0.95242344]
[1728442845549,0.002642,62320.0,62319.0,0.95442344]
[1728442845852,0.002642,62320.0,62319.0,0.95242344]
[1728442847004,0.002642,62320.0,62319.0,0.95442344]
[1728442847219,0.002642,62320.0,62319.0,0.96060087]
[1728442848631,0.001642,62320.0,62319.0,0.95460087]
[1728442848852,0.001642,62320.0,62319.0,0.94860087]
[1728442849097,0.002642,62320.0,62319.0,0.95860087]
[1728442849331,0.003642,62320.0,62319.0,0.95960087]
[1728442849581,0.002642,62320.0,62319.0,0.95860087]
[1728442850045,0.003642,62320.0,62319.0,0.95860087]
[1728442850748,0.002642,62320.0,62319.0,0.94860087]
[1728442851451,0.004642,62320.0,62319.0,1.06874275]
[1728442853408,0.004642,62320.0,62319.0,0.94860087]
[1728442856260,0.004642,62320.0,62319.0,0.81362344]
[1728442856477,0.004642,62320.0,62319.0,0.89069455]
[1728442856693,0.004642,62320.0,62319.0,0.81862344]
[1728442856932,0.004642,62320.0,62319.0,0.86667185]
[1728442857155,0.004642,62320.0,62319.0,0.86167185]
[1728442857395,0.004642,62320.0,62319.0,0.81862344]
[1728442859960,0.01964503,62320.0,62319.0,0.81862344]
[1728442861363,0.01964503,62320.0,62319.0,0.81362344]
[1728442861870,0.004642,62320.0,62319.0,0.81362344]
[1728442862117,0.004642,62320.0,62319.0,0.88569455]
[1728442862339,0.004642,62320.0,62319.0,0.89069455]
[1728442863405,0.004642,62320.0,62319.0,0.81862344]
[1728442863871,0.004642,62320.0,62319.0,0.93992344]
[1728442864850,0.001642,62327.0,62325.0,0.002]
[1728442865120,0.001642,62327.0,62326.0,0.63485732]
[1728442865554,0.01664533,62327.0,62326.0,0.63485732]
[1728442865772,0.001642,62327.0,62326.0,0.70693172]
[1728442866001,0.001642,62327.0,62326.0,0.63485732]
[1728442866237,0.001642,62327.0,62326.0,0.79713172]
[1728442866462,0.001642,62327.0,62326.0,0.72505732]
[1728442866928,0.002642,62327.0,62326.0,0.73505732]
[1728442867861,0.003642,62327.0,62326.0,0.74505732]
[1728442868307,0.003642,62327.0,62326.0,0.793092]
[1728442868580,0.01864906,62327.0,62326.0,0.793092]
[1728442870201,0.01864906,62327.0,62326.0,0.79776675]
[1728442870421,0.01864906,62327.0,62326.0,0.79776647]
[1728442871565,0.01864906,62327.0,62326.0,0.74973207]
[1728442872014,0.003642,62327.0,62326.0,0.74973207]
[1728442872234,0.0186599,62327.0,62326.0,0.74973207]
[1728442875556,0.0186599,62327.0,62326.0,0.58433207]
[1728442875808,0.0186599,62327.0,62326.0,0.63237273]
[1728442877633,0.0186599,62327.0,62326.0,0.44053419]
[1728442878136,0.03225419,62327.0,62326.0,0.44053419]
[1728442878359,0.05629848,62327.0,62326.0,0.44053419]
[1728442878586,0.04270419,62327.0,62326.0,0.44053419]
[1728442878826,0.05629848,62327.0,62326.0,0.44053419]
[1728442879052,0.05629749,62327.0,62326.0,0.44053419]
[1728442880166,0.04270419,62327.0,62326.0,0.44053419]
[1728442882314,0.0276956,62327.0,62326.0,0.44053419]
[1728442882509,0.0427291,62327.0,62326.0,0.44053419]
[1728442883164,0.04264888,62327.0,62326.0,0.44053419]
[1728442884616,0.05624846,62327.0,62326.0,0.44053419]
[1728442884841,0.04264888,62327.0,62326.0,0.44053419]
[1728442885037,0.04264888,62327.0,62326.0,0.48861948]
[1728442885490,0.04264999,62327.0,62326.0,0.48861948]
[1728442885724,0.04264999,62327.0,62326.0,0.44053419]
[1728442885954,0.13304999,62327.0,62326.0,0.280446]
[1728442886178,0.20834999,62327.0,62326.0,0.280446]
[1728442889036,0.20834724,62327.0,62326.0,0.280446]
[1728442889507,0.13304724,62327.0,62326.0,0.280446]
[1728442889742,0.13304724,62327.0,62326.0,0.32856943]
[1728442892228,0.09396178,62327.0,62326.0,0.32856943]
[1728442892447,0.13304987,62327.0,62326.0,0.32856943]
[1728442896316,0.13304987,62327.0,62326.0,0.280446]
[1728442898830,0.13304784,62327.0,62326.0,0.280446]
[1728442902023,0.04264784,62327.0,62326.0,0.40124388]
[1728442902223,0.02761587,62327.0,62326.0,0.40124388]
[1728442902444,0.04264967,62327.0,62326.0,0.40124388]
[1728442903046,0.04264967,62327.0,62326.0,0.281267]
[1728442904305,0.13714967,62327.0,62326.0,0.281267]
[1728442904529,0.13714967,62327.0,62326.0,0.181267]
[1728442904778,0.15074739,62327.0,62326.0,0.181267]
[1728442905457,0.15075784,62327.0,62326.0,0.181267]
[1728442907017,0.14975784,62327.0,62326.0,0.171267]
[1728442907511,0.14975784,62327.0,62326.0,0.176267]
[1728442907726,0.14875784,62327.0,62326.0,0.166267]
[1728442907947,0.12469732,62327.0,62326.0,0.166267]
[1728442908161,0.12469732,62327.0,62326.0,0.168267]
[1728442908383,0.1110996,62327.0,62326.0,0.166267]
[1728442908880,0.1111047,62327.0,62326.0,0.168267]
[1728442909099,0.1111047,62327.0,62326.0,0.163267]
[1728442909541,0.1111047,62327.0,62326.0,0.166267]
[1728442909770,0.0166047,62327.0,62326.0,0.28706488]
[1728442910049,0.0166047,62327.0,62326.0,0.335187]
[1728442912062,0.00156178,62327.0,62326.0,0.335187]
[1728442912287,0.01660629,62327.0,62326.0,0.335187]
[1728442912516,0.01660629,62327.0,62326.0,0.333187]
[1728442912753,0.01660629,62327.0,62326.0,0.330187]
[1728442912964,0.01760629,62327.0,62326.0,0.29006488]
[1728442913385,0.01860629,62327.0,62326.0,0.29706488]
[1728442913827,0.01760629,62327.0,62326.0,0.29006488]
[1728442914324,0.02260629,62327.0,62326.0,0.28206488]
[1728442914541,0.02260629,62327.0,62326.0,0.28306488]
[1728442914762,0.02260629,62327.0,62326.0,0.28206488]
[1728442915000,0.02260706,62327.0,62326.0,0.28206488]
[1728442915225,0.02560706,62327.0,62326.0,0.28306488]
[1728442915443,0.01056178,62327.0,62326.0,0.35524006]
[1728442915667,0.02560901,62327.0,62326.0,0.35524006]
[1728442916117,0.02560901,62327.0,62326.0,0.5106535]
[1728442916346,0.02560901,62327.0,62326.0,0.43847832]
[1728442916569,0.02560901,62327.0,62326.0,0.51066193]
[1728442917030,0.02560901,62327.0,62326.0,0.68796193]
[1728442917264,0.02560901,62327.0,62326.0,0.86408434]
[1728442917265,0.01960901,62327.0,62326.0,0.86408434]
[1728442917507,0.01960901,62327.0,62326.0,0.74277832]
[1728442917508,0.01660901,62327.0,62326.0,0.74277832]
[1728442917740,0.01256178,62327.0,62326.0,0.74377832]
[1728442917965,0.00756178,62327.0,62326.0,0.74277832]
[1728442918195,0.00756178,62327.0,62326.0,0.88714555]
[1728442918418,0.01256178,62327.0,62326.0,0.74277832]
[1728442918655,0.00756178,62327.0,62326.0,0.74277832]
[1728442919127,0.00156178,62327.0,62326.0,0.74477832]
[1728442919370,0.00256178,62327.0,62326.0,0.88704479]
[1728442919810,0.00156178,62327.0,62326.0,0.88704479]
[1728442920759,0.00156178,62327.0,62326.0,0.88904479]
[1728442920979,0.00156178,62327.0,62326.0,0.89404479]
[1728442921225,0.00156178,62327.0,62326.0,0.88904479]
[1728442921686,0.00156178,62327.0,62326.0,0.89104479]
[1728442921914,0.00156178,62327.0,62326.0,0.88904479]
[1728442922138,0.00156178,62327.0,62326.0,0.89488355]
[1728442922389,0.00156178,62327.0,62326.0,0.89688355]
[1728442922605,0.00156178,62327.0,62326.0,0.89888355]
[1728442922813,0.00156178,62327.0,62326.0,0.75461708]
[1728442923045,0.00156178,62327.0,62326.0,0.74677832]
[1728442926626,0.00156178,62327.0,62326.0,0.7547785]
[1728442927551,0.00156178,62327.0,62326.0,0.74677832]
[1728442928454,0.00156178,62327.0,62326.0,0.74477832]
[1728442928672,0.00156178,62327.0,62326.0,0.74377832]
[1728442928905,0.00256178,62327.0,62326.0,0.74377832]
[1728442929167,0.00256178,62327.0,62326.0,0.74277832]
[1728442929621,0.00256178,62327.0,62326.0,0.62198044]
[1728442929859,0.00256178,62327.0,62326.0,0.74277832]
[1728442935873,0.00256178,62327.0,62326.0,0.74377832]
[1728442936284,0.00256178,62327.0,62326.0,0.62298044]
[1728442936485,0.00256178,62327.0,62326.0,0.74377832]
[1728442936923,0.00156178,62327.0,62326.0,0.74377832]